[Event "Live Chess"]
[Site "Chess.com"]
[Date "2023.05.21"]
[Round "-"]
[White "EdenHazard8"]
[Black "CeladonFish"]
[Result "1-0"]
[WhiteElo "1946"]
[BlackElo "1136"]
[TimeControl "300"]
[EndTime "5:16:46 PDT"]
[Termination "EdenHazard8 won by checkmate"]

1. e4 {[%clk 0:04:58.9]} 1... d6 {[%clk 0:04:58.3]} 2. d4 {[%clk 0:04:58]} 2...
Nf6 {[%clk 0:04:57]} 3. Nc3 {[%clk 0:04:56.8]} 3... g6 {[%clk 0:04:55.8]} 4. f3
{[%clk 0:04:55.9]} 4... Bg7 {[%clk 0:04:54.7]} 5. Be3 {[%clk 0:04:55.4]} 5...
O-O {[%clk 0:04:53.9]} 6. Qd2 {[%clk 0:04:52.8]} 6... Nbd7 {[%clk 0:04:47.4]} 7.
h4 {[%clk 0:04:51.7]} 7... c5 {[%clk 0:04:46.7]} 8. d5 {[%clk 0:04:50.6]} 8...
a6 {[%clk 0:04:43.5]} 9. Bh6 {[%clk 0:04:49]} 9... b5 {[%clk 0:04:41.8]} 10. h5
{[%clk 0:04:48.1]} 10... b4 {[%clk 0:04:39.5]} 11. Na4 {[%clk 0:04:46.8]} 11...
Nb6 {[%clk 0:04:36.6]} 12. Nxb6 {[%clk 0:04:44.6]} 12... Qxb6 {[%clk 0:04:35.2]}
13. hxg6 {[%clk 0:04:43.8]} 13... fxg6 {[%clk 0:04:33.8]} 14. Bxg7 {[%clk
0:04:43.1]} 14... Kxg7 {[%clk 0:04:32.4]} 15. Qh6+ {[%clk 0:04:43]} 15... Kf7
{[%clk 0:04:25]} 16. Nh3 {[%clk 0:04:42.2]} 16... Bxh3 {[%clk 0:04:21.4]} 17.
Rxh3 {[%clk 0:04:40.3]} 17... a5 {[%clk 0:04:11.8]} 18. Bc4 {[%clk 0:04:39]}
18... a4 {[%clk 0:04:08.5]} 19. g4 {[%clk 0:04:27.2]} 19... a3 {[%clk
0:03:56.1]} 20. b3 {[%clk 0:04:24.6]} 20... Rg8 {[%clk 0:03:45.4]} 21. g5 {[%clk
0:04:10.1]} 21... Nh5 {[%clk 0:03:42.1]} 22. Qxh7+ {[%clk 0:04:09]} 22... Kf8
{[%clk 0:03:37.7]} 23. O-O-O {[%clk 0:04:04.5]} 23... Rg7 {[%clk 0:03:35]} 24.
Qh6 {[%clk 0:04:02.8]} 24... Kf7 {[%clk 0:03:31.7]} 25. f4 {[%clk 0:04:00.6]}
25... Qd8 {[%clk 0:03:14]} 26. f5 {[%clk 0:03:58.3]} 26... gxf5 {[%clk
0:03:08.9]} 27. Qe6+ {[%clk 0:03:56.6]} 27... Kf8 {[%clk 0:03:06.7]} 28. Rxh5
{[%clk 0:03:55.6]} 28... Rf7 {[%clk 0:02:53]} 29. Rh8+ {[%clk 0:03:53.3]} 29...
Kg7 {[%clk 0:02:51.5]} 30. Qh6# {[%clk 0:03:53.2]} 1-0

[Event "Live Chess"]
[Site "Chess.com"]
[Date "2023.05.21"]
[Round "-"]
[White "NomisY"]
[Black "TheSmoulderingMaster"]
[Result "1-0"]
[WhiteElo "1590"]
[BlackElo "1630"]
[TimeControl "300"]
[EndTime "5:16:53 PDT"]
[Termination "NomisY won by checkmate"]

1. d4 {[%clk 0:04:57.4]} 1... Nf6 {[%clk 0:04:58.8]} 2. c4 {[%clk 0:04:56.1]}
2... d6 {[%clk 0:04:58.2]} 3. Nc3 {[%clk 0:04:54.9]} 3... g6 {[%clk 0:04:57.6]}
4. e4 {[%clk 0:04:53.8]} 4... Bg7 {[%clk 0:04:56.9]} 5. f3 {[%clk 0:04:51.1]}
5... O-O {[%clk 0:04:56]} 6. Be3 {[%clk 0:04:50.6]} 6... e5 {[%clk 0:04:53.9]}
7. Nge2 {[%clk 0:04:46.1]} 7... Nc6 {[%clk 0:04:50.7]} 8. d5 {[%clk 0:04:44.4]}
8... Ne7 {[%clk 0:04:49.7]} 9. Qd2 {[%clk 0:04:43.8]} 9... c6 {[%clk 0:04:48.8]}
10. O-O-O {[%clk 0:04:38.1]} 10... cxd5 {[%clk 0:04:46.9]} 11. cxd5 {[%clk
0:04:37]} 11... a6 {[%clk 0:04:44.7]} 12. g4 {[%clk 0:04:34.9]} 12... b5 {[%clk
0:04:42.3]} 13. Ng3 {[%clk 0:04:31.5]} 13... Qa5 {[%clk 0:04:40.1]} 14. Kb1
{[%clk 0:04:29.3]} 14... Bd7 {[%clk 0:04:34.9]} 15. h4 {[%clk 0:04:27.4]} 15...
b4 {[%clk 0:04:32.1]} 16. Nce2 {[%clk 0:04:26.1]} 16... Ba4 {[%clk 0:04:30.6]}
17. Rc1 {[%clk 0:03:47.1]} 17... Rfc8 {[%clk 0:04:26.5]} 18. h5 {[%clk
0:03:45.3]} 18... Rxc1+ {[%clk 0:04:19.6]} 19. Nxc1 {[%clk 0:03:44.3]} 19... Rc8
{[%clk 0:04:18.9]} 20. Bd3 {[%clk 0:03:43.1]} 20... Bb5 {[%clk 0:04:12.3]} 21.
hxg6 {[%clk 0:03:35.7]} 21... Nxg6 {[%clk 0:04:08.6]} 22. Nf5 {[%clk 0:03:31.8]}
22... Bxd3+ {[%clk 0:03:57.4]} 23. Nxd3 {[%clk 0:03:24.7]} 23... Qb5 {[%clk
0:03:54.3]} 24. Nxd6 {[%clk 0:03:12.4]} 24... Qd7 {[%clk 0:03:49.4]} 25. Nxc8
{[%clk 0:03:11.3]} 25... Qxc8 {[%clk 0:03:49.3]} 26. Nxb4 {[%clk 0:03:07.8]}
26... Nf4 {[%clk 0:03:47.1]} 27. Nxa6 {[%clk 0:02:53.4]} 27... Qxa6 {[%clk
0:03:44.6]} 28. g5 {[%clk 0:02:12]} 28... Nd7 {[%clk 0:03:31.8]} 29. Rc1 {[%clk
0:01:51.5]} 29... Bf8 {[%clk 0:03:21.4]} 30. Bxf4 {[%clk 0:01:30.5]} 30... exf4
{[%clk 0:03:18.4]} 31. Qxf4 {[%clk 0:01:30]} 31... Qd3+ {[%clk 0:03:14.1]} 32.
Ka1 {[%clk 0:01:26.8]} 32... Qd4 {[%clk 0:03:06.4]} 33. Qc7 {[%clk 0:00:43]}
33... Bg7 {[%clk 0:02:58]} 34. Qc3 {[%clk 0:00:22.6]} 34... Nc5 {[%clk
0:02:43.5]} 35. Qxd4 {[%clk 0:00:21.1]} 35... Bxd4 {[%clk 0:02:42]} 36. Kb1
{[%clk 0:00:17.2]} 36... Nd3 {[%clk 0:02:39.9]} 37. Rd1 {[%clk 0:00:15.4]} 37...
Ne5 {[%clk 0:02:33.4]} 38. Rxd4 {[%clk 0:00:15.1]} 38... Nxf3 {[%clk 0:02:32.7]}
39. Rc4 {[%clk 0:00:14.7]} 39... Nxg5 {[%clk 0:02:31.2]} 40. a4 {[%clk
0:00:14.2]} 40... h5 {[%clk 0:02:21.9]} 41. a5 {[%clk 0:00:13.7]} 41... h4
{[%clk 0:02:21.4]} 42. a6 {[%clk 0:00:13.2]} 42... h3 {[%clk 0:02:21]} 43. Rc2
{[%clk 0:00:12.5]} 43... Nxe4 {[%clk 0:02:18.3]} 44. a7 {[%clk 0:00:11.3]} 44...
Kg7 {[%clk 0:02:13.4]} 45. a8=Q {[%clk 0:00:10.1]} 45... Nf6 {[%clk 0:02:11.6]}
46. d6 {[%clk 0:00:08.5]} 46... Kg6 {[%clk 0:02:07.5]} 47. Qf3 {[%clk
0:00:07.8]} 47... h2 {[%clk 0:02:04.2]} 48. Qh3 {[%clk 0:00:07.2]} 48... h1=Q+
{[%clk 0:02:01.2]} 49. Qxh1 {[%clk 0:00:06.8]} 49... Kg5 {[%clk 0:02:00.2]} 50.
Rg2+ {[%clk 0:00:05.6]} 50... Kf5 {[%clk 0:01:59.4]} 51. Qf1+ {[%clk 0:00:05.1]}
51... Ke6 {[%clk 0:01:58.3]} 52. Re2+ {[%clk 0:00:04.7]} 52... Kd7 {[%clk
0:01:57.2]} 53. Qxf6 {[%clk 0:00:04.2]} 53... Kc6 {[%clk 0:01:55.8]} 54. Re7
{[%clk 0:00:03.8]} 54... Kc5 {[%clk 0:01:53.8]} 55. d7 {[%clk 0:00:03.3]} 55...
Kc4 {[%clk 0:01:52.9]} 56. Qf4+ {[%clk 0:00:02.1]} 56... Kd3 {[%clk 0:01:52.8]}
57. Re3+ {[%clk 0:00:01.2]} 57... Kd2 {[%clk 0:01:51.9]} 58. Qf2+ {[%clk
0:00:01]} 58... Kd1 {[%clk 0:01:50.7]} 59. Re1# {[%clk 0:00:00.7]} 1-0

[Event "Live Chess"]
[Site "Chess.com"]
[Date "2023.05.21"]
[Round "-"]
[White "ossie57"]
[Black "LiamClery2020"]
[Result "0-1"]
[WhiteElo "1857"]
[BlackElo "1987"]
[TimeControl "300"]
[EndTime "5:16:58 PDT"]
[Termination "LiamClery2020 won by resignation"]

1. d4 {[%clk 0:04:58.4]} 1... Nf6 {[%clk 0:04:59.9]} 2. Nc3 {[%clk 0:04:57.5]}
2... d6 {[%clk 0:04:56]} 3. Bf4 {[%clk 0:04:53.9]} 3... Nc6 {[%clk 0:04:54.8]}
4. e3 {[%clk 0:04:49.3]} 4... Bg4 {[%clk 0:04:53.1]} 5. f3 {[%clk 0:04:47]} 5...
Bh5 {[%clk 0:04:51.3]} 6. g4 {[%clk 0:04:46.5]} 6... Bg6 {[%clk 0:04:50.1]} 7.
h4 {[%clk 0:04:45.9]} 7... e5 {[%clk 0:04:46.7]} 8. Bg3 {[%clk 0:04:35.3]} 8...
h5 {[%clk 0:04:39.9]} 9. g5 {[%clk 0:04:33.7]} 9... exd4 {[%clk 0:04:38.1]} 10.
exd4 {[%clk 0:04:22.9]} 10... Qe7+ {[%clk 0:04:36.1]} 11. Qe2 {[%clk 0:04:13.2]}
11... Qxe2+ {[%clk 0:04:33.9]} 12. Ngxe2 {[%clk 0:04:12.6]} 12... Nd7 {[%clk
0:04:32.2]} 13. O-O-O {[%clk 0:04:11.8]} 13... Nb6 {[%clk 0:04:31.2]} 14. Nf4
{[%clk 0:04:08.3]} 14... O-O-O {[%clk 0:04:27.9]} 15. Nxg6 {[%clk 0:04:07.5]}
15... fxg6 {[%clk 0:04:27.8]} 16. d5 {[%clk 0:03:46.2]} 16... Ne7 {[%clk
0:04:20.5]} 17. Bh3+ {[%clk 0:03:38.2]} 17... Nf5 {[%clk 0:04:15.3]} 18. Ne2
{[%clk 0:03:27.9]} 18... Kb8 {[%clk 0:04:12.3]} 19. Bxf5 {[%clk 0:03:25.7]}
19... gxf5 {[%clk 0:04:12.2]} 20. Nd4 {[%clk 0:03:25]} 20... g6 {[%clk
0:04:07.3]} 21. Ne6 {[%clk 0:03:24.1]} 21... Re8 {[%clk 0:04:05.9]} 22. b3
{[%clk 0:03:19.6]} 22... Nxd5 {[%clk 0:03:41.5]} 23. Nxf8 {[%clk 0:03:12.2]}
23... Nc3 {[%clk 0:03:40.5]} 24. Rd3 {[%clk 0:03:06.5]} 24... Ne2+ {[%clk
0:03:38.4]} 25. Kb2 {[%clk 0:03:03.7]} 25... Nxg3 {[%clk 0:03:38.3]} 26. Nxg6
{[%clk 0:03:00.2]} 26... Nxh1 {[%clk 0:03:36.5]} 27. Nxh8 {[%clk 0:02:59.4]}
27... Rxh8 {[%clk 0:03:36.1]} 28. Re3 {[%clk 0:02:53.2]} 28... Nf2 {[%clk
0:03:32.2]} 29. Re7 {[%clk 0:02:42.2]} 29... Nh3 {[%clk 0:03:22.2]} 30. g6
{[%clk 0:02:35.3]} 30... Nf4 {[%clk 0:03:20.4]} 31. g7 {[%clk 0:02:34.5]} 31...
Rg8 {[%clk 0:03:19.6]} 32. Rf7 {[%clk 0:02:33.7]} 32... Ne6 {[%clk 0:03:17.8]}
33. Rf6 {[%clk 0:02:28.1]} 33... Nxg7 {[%clk 0:03:15.5]} 34. Rg6 {[%clk
0:02:24.7]} 34... Kc8 {[%clk 0:03:14.6]} 35. Kc3 {[%clk 0:02:23.8]} 35... Kd7
{[%clk 0:03:13.7]} 36. Kd3 {[%clk 0:02:19.5]} 36... Ke7 {[%clk 0:03:12.8]} 37.
Ke3 {[%clk 0:02:18.4]} 37... Kf7 {[%clk 0:03:08.3]} 38. Rg1 {[%clk 0:02:17.4]}
38... Ne6 {[%clk 0:03:07.6]} 0-1

[Event "Live Chess"]
[Site "Chess.com"]
[Date "2023.05.21"]
[Round "-"]
[White "MatteoGoffin"]
[Black "JanMur7"]
[Result "0-1"]
[WhiteElo "1467"]
[BlackElo "1956"]
[TimeControl "300"]
[EndTime "5:17:00 PDT"]
[Termination "JanMur7 won on time"]

1. d4 {[%clk 0:04:57.3]} 1... Nf6 {[%clk 0:04:51.4]} 2. Nf3 {[%clk 0:04:55.5]}
2... e6 {[%clk 0:04:48.7]} 3. e3 {[%clk 0:04:54.3]} 3... Be7 {[%clk 0:04:27.4]}
4. Bd3 {[%clk 0:04:52.3]} 4... O-O {[%clk 0:04:26.4]} 5. O-O {[%clk 0:04:50.9]}
5... b6 {[%clk 0:04:25.5]} 6. Nbd2 {[%clk 0:04:48.4]} 6... Bb7 {[%clk
0:04:24.8]} 7. Re1 {[%clk 0:04:46.2]} 7... d6 {[%clk 0:04:24]} 8. e4 {[%clk
0:04:43.2]} 8... Nbd7 {[%clk 0:04:23.5]} 9. h3 {[%clk 0:04:35]} 9... c5 {[%clk
0:04:17]} 10. c3 {[%clk 0:04:33.1]} 10... cxd4 {[%clk 0:04:09.4]} 11. cxd4
{[%clk 0:04:28.9]} 11... e5 {[%clk 0:04:09.3]} 12. d5 {[%clk 0:04:27]} 12... Nc5
{[%clk 0:04:08.2]} 13. Bc2 {[%clk 0:04:24.8]} 13... Ba6 {[%clk 0:03:45.8]} 14.
Nb3 {[%clk 0:04:05.3]} 14... Nxb3 {[%clk 0:03:37.8]} 15. Bxb3 {[%clk 0:03:59.8]}
15... Nd7 {[%clk 0:03:36]} 16. a3 {[%clk 0:03:53.6]} 16... Nc5 {[%clk
0:03:30.5]} 17. Bc2 {[%clk 0:03:51.6]} 17... Rc8 {[%clk 0:03:17.6]} 18. b4
{[%clk 0:03:48.3]} 18... Nd7 {[%clk 0:03:11.2]} 19. Be3 {[%clk 0:03:30.9]} 19...
Qc7 {[%clk 0:02:55.7]} 20. Rc1 {[%clk 0:03:28.5]} 20... Qb8 {[%clk 0:02:47.1]}
21. Ba4 {[%clk 0:03:21.6]} 21... b5 {[%clk 0:02:43.7]} 22. Bc2 {[%clk
0:03:14.9]} 22... Bb7 {[%clk 0:02:37.9]} 23. Ng5 {[%clk 0:03:00]} 23... h6
{[%clk 0:02:32.8]} 24. Nf3 {[%clk 0:02:54]} 24... a6 {[%clk 0:02:31.6]} 25. Nh2
{[%clk 0:02:50.4]} 25... Rc4 {[%clk 0:02:18.2]} 26. Bb1 {[%clk 0:02:43.7]} 26...
Rxc1 {[%clk 0:02:09.1]} 27. Bxc1 {[%clk 0:02:37.8]} 27... Nb6 {[%clk 0:02:02.2]}
28. Qg4 {[%clk 0:02:31.8]} 28... Kh7 {[%clk 0:01:56]} 29. Qf5+ {[%clk
0:02:27.5]} 29... g6 {[%clk 0:01:45.6]} 30. Qf3 {[%clk 0:02:18.4]} 30... Nc4
{[%clk 0:01:41.3]} 31. Ng4 {[%clk 0:02:12.8]} 31... h5 {[%clk 0:01:27.6]} 32.
Ne3 {[%clk 0:02:03.3]} 32... Nb6 {[%clk 0:01:16.9]} 33. Nf1 {[%clk 0:01:47.6]}
33... Qd8 {[%clk 0:01:14.3]} 34. Qe3 {[%clk 0:01:42.9]} 34... g5 {[%clk
0:01:13]} 35. h4 {[%clk 0:01:36.6]} 35... Kg6 {[%clk 0:01:07.6]} 36. Qg3 {[%clk
0:01:21.2]} 36... f6 {[%clk 0:00:52.1]} 37. Nh2 {[%clk 0:01:18.9]} 37... Nc4
{[%clk 0:00:44.5]} 38. hxg5 {[%clk 0:01:12.6]} 38... fxg5 {[%clk 0:00:42.2]} 39.
Nf3 {[%clk 0:01:11.3]} 39... g4 {[%clk 0:00:31.8]} 40. Nd2 {[%clk 0:00:57.8]}
40... Nxd2 {[%clk 0:00:27.5]} 41. Bxd2 {[%clk 0:00:56]} 41... Bg5 {[%clk
0:00:27.4]} 42. Bxg5 {[%clk 0:00:49.9]} 42... Qxg5 {[%clk 0:00:27.3]} 43. Qe3
{[%clk 0:00:40.6]} 43... Qxe3 {[%clk 0:00:24.1]} 44. Rxe3 {[%clk 0:00:39.1]}
44... Rc8 {[%clk 0:00:23.4]} 45. Re1 {[%clk 0:00:36.3]} 45... Rc3 {[%clk
0:00:22.2]} 46. Kh2 {[%clk 0:00:29.2]} 46... h4 {[%clk 0:00:21]} 47. Re3 {[%clk
0:00:25.1]} 47... Rxe3 {[%clk 0:00:17.8]} 48. fxe3 {[%clk 0:00:23.5]} 48... Kg5
{[%clk 0:00:17.3]} 49. Bc2 {[%clk 0:00:21.1]} 49... Bc8 {[%clk 0:00:16]} 50. Bd1
{[%clk 0:00:19]} 50... Bd7 {[%clk 0:00:15.4]} 51. Be2 {[%clk 0:00:17.5]} 51...
Be8 {[%clk 0:00:14.9]} 52. g3 {[%clk 0:00:16]} 52... Bh5 {[%clk 0:00:13.7]} 53.
gxh4+ {[%clk 0:00:13.6]} 53... Kxh4 {[%clk 0:00:13.6]} 54. Kg2 {[%clk
0:00:12.3]} 54... Bg6 {[%clk 0:00:12.4]} 55. Bd1 {[%clk 0:00:09.1]} 55... Bxe4+
{[%clk 0:00:11.3]} 56. Kh2 {[%clk 0:00:07.5]} 56... Bxd5 {[%clk 0:00:11.2]} 57.
Be2 {[%clk 0:00:03.2]} 57... Bc4 {[%clk 0:00:11.1]} 58. e4 {[%clk 0:00:01.5]}
58... g3+ {[%clk 0:00:11]} 0-1

[Event "Live Chess"]
[Site "Chess.com"]
[Date "2023.05.21"]
[Round "-"]
[White "srichess4u"]
[Black "KeithArkell"]
[Result "0-1"]
[WhiteElo "611"]
[BlackElo "2488"]
[TimeControl "300"]
[EndTime "5:17:04 PDT"]
[Termination "KeithArkell won by resignation"]

1. e4 {[%clk 0:04:53.2]} 1... c6 {[%clk 0:04:58.8]} 2. Bd3 {[%clk 0:04:42.8]}
2... d5 {[%clk 0:04:57.3]} 3. e5 {[%clk 0:04:40.1]} 3... c5 {[%clk 0:04:55.4]}
4. Nf3 {[%clk 0:04:37.6]} 4... Nc6 {[%clk 0:04:54.6]} 5. O-O {[%clk 0:04:32.8]}
5... Bg4 {[%clk 0:04:53.5]} 6. Nc3 {[%clk 0:04:21.4]} 6... a6 {[%clk 0:04:48.4]}
7. Nxd5 {[%clk 0:04:18.8]} 7... Qxd5 {[%clk 0:04:44.9]} 8. Ng5 {[%clk
0:04:02.3]} 8... Bxd1 {[%clk 0:04:40.8]} 9. Rxd1 {[%clk 0:04:00.7]} 9... Nxe5
{[%clk 0:04:38.1]} 10. Bxh7 {[%clk 0:03:57.3]} 10... Nf3+ {[%clk 0:04:24.9]} 11.
gxf3 {[%clk 0:03:54.9]} 11... Qxg5+ {[%clk 0:04:22.9]} 12. Kh1 {[%clk
0:03:51.2]} 12... Rxh7 {[%clk 0:04:22.1]} 13. Rg1 {[%clk 0:03:48.8]} 13... Qh5
{[%clk 0:04:20]} 0-1

[Event "Live Chess"]
[Site "Chess.com"]
[Date "2023.05.21"]
[Round "-"]
[White "JackRudd"]
[Black "Doge_Dandolo"]
[Result "1-0"]
[WhiteElo "2464"]
[BlackElo "1907"]
[TimeControl "300"]
[EndTime "5:17:11 PDT"]
[Termination "JackRudd won by resignation"]

1. d4 {[%clk 0:04:58.9]} 1... d5 {[%clk 0:04:58.2]} 2. c4 {[%clk 0:04:57.5]}
2... c6 {[%clk 0:04:54.5]} 3. Nf3 {[%clk 0:04:56.1]} 3... Nf6 {[%clk 0:04:48.2]}
4. Nc3 {[%clk 0:04:54.5]} 4... a6 {[%clk 0:04:41.9]} 5. a4 {[%clk 0:04:46.4]}
5... a5 {[%clk 0:04:36]} 6. e3 {[%clk 0:04:44.4]} 6... e6 {[%clk 0:04:33.2]} 7.
Bd3 {[%clk 0:04:42.8]} 7... Be7 {[%clk 0:04:31.7]} 8. O-O {[%clk 0:04:41.2]}
8... O-O {[%clk 0:04:29.8]} 9. e4 {[%clk 0:04:40.3]} 9... dxe4 {[%clk
0:04:28.7]} 10. Nxe4 {[%clk 0:04:39.2]} 10... Nxe4 {[%clk 0:04:27.7]} 11. Bxe4
{[%clk 0:04:38.5]} 11... Nd7 {[%clk 0:04:27]} 12. b3 {[%clk 0:04:35.8]} 12...
Nf6 {[%clk 0:04:25.5]} 13. Bc2 {[%clk 0:04:34.7]} 13... Bb4 {[%clk 0:04:24.1]}
14. Bb2 {[%clk 0:04:32.8]} 14... Qc7 {[%clk 0:04:21.8]} 15. Ne5 {[%clk
0:04:30.5]} 15... Rd8 {[%clk 0:04:19.1]} 16. Qf3 {[%clk 0:04:29]} 16... Bd7
{[%clk 0:04:16.4]} 17. Rad1 {[%clk 0:04:26.4]} 17... c5 {[%clk 0:04:13.6]} 18.
Qg3 {[%clk 0:04:21.2]} 18... Rac8 {[%clk 0:04:08.3]} 19. d5 {[%clk 0:04:10.8]}
19... exd5 {[%clk 0:04:04.6]} 20. cxd5 {[%clk 0:04:09.7]} 20... b5 {[%clk
0:03:54.1]} 21. d6 {[%clk 0:04:08.7]} 21... Qb7 {[%clk 0:03:50]} 22. Nxd7 {[%clk
0:04:07.1]} 22... Rxd7 {[%clk 0:03:44.2]} 23. Bxf6 {[%clk 0:04:05.4]} 1-0

[Event "Live Chess"]
[Site "Chess.com"]
[Date "2023.05.21"]
[Round "-"]
[White "Brooms1989"]
[Black "Nicckui"]
[Result "0-1"]
[WhiteElo "1160"]
[BlackElo "1777"]
[TimeControl "300"]
[EndTime "5:17:12 PDT"]
[Termination "Nicckui won by checkmate"]

1. e4 {[%clk 0:04:57.5]} 1... c6 {[%clk 0:04:58.9]} 2. d4 {[%clk 0:04:56.2]}
2... d5 {[%clk 0:04:58.2]} 3. f3 {[%clk 0:04:55.6]} 3... dxe4 {[%clk 0:04:56.4]}
4. fxe4 {[%clk 0:04:55.5]} 4... e5 {[%clk 0:04:55.6]} 5. Nf3 {[%clk 0:04:53.4]}
5... Bg4 {[%clk 0:04:54.7]} 6. Be3 {[%clk 0:04:46.5]} 6... Nd7 {[%clk
0:04:48.7]} 7. h3 {[%clk 0:04:45.1]} 7... Bxf3 {[%clk 0:04:46.2]} 8. Qxf3 {[%clk
0:04:43.8]} 8... Ngf6 {[%clk 0:04:43.2]} 9. dxe5 {[%clk 0:04:39.7]} 9... Nxe5
{[%clk 0:04:43.1]} 10. Qg3 {[%clk 0:04:33.1]} 10... Qe7 {[%clk 0:04:24.5]} 11.
Bd3 {[%clk 0:04:24.9]} 11... O-O-O {[%clk 0:04:21.5]} 12. Bf4 {[%clk 0:04:16.8]}
12... Ng6 {[%clk 0:03:45.9]} 13. O-O {[%clk 0:04:03.6]} 13... Nxe4 {[%clk
0:03:41]} 14. Bxe4 {[%clk 0:03:54.4]} 14... Qxe4 {[%clk 0:03:40.9]} 15. c3
{[%clk 0:03:37.9]} 15... Bc5+ {[%clk 0:03:30.3]} 16. Kh1 {[%clk 0:03:35.2]}
16... Nxf4 {[%clk 0:03:18.6]} 17. Qxf4 {[%clk 0:03:18.1]} 17... Qxf4 {[%clk
0:03:14.6]} 18. Rxf4 {[%clk 0:03:09.4]} 18... Rd1+ {[%clk 0:03:13.9]} 19. Kh2
{[%clk 0:03:07.8]} 19... Bd6 {[%clk 0:03:12]} 20. g3 {[%clk 0:03:04.7]} 20...
Bxf4 {[%clk 0:03:09.4]} 21. gxf4 {[%clk 0:03:03.9]} 21... Re8 {[%clk 0:03:08.1]}
22. Kg3 {[%clk 0:03:02.6]} 22... Ree1 {[%clk 0:03:06.4]} 23. Kf3 {[%clk
0:03:00.8]} 23... Rxb1 {[%clk 0:03:05.3]} 24. Rxb1 {[%clk 0:02:59.3]} 24... Rxb1
{[%clk 0:03:05.2]} 25. Ke4 {[%clk 0:02:57.9]} 25... Rxb2 {[%clk 0:03:04.4]} 26.
a3 {[%clk 0:02:56.4]} 26... Rb3 {[%clk 0:03:03.6]} 27. c4 {[%clk 0:02:55.9]}
27... Rxa3 {[%clk 0:03:03]} 28. c5 {[%clk 0:02:55.4]} 28... Rxh3 {[%clk
0:03:02.4]} 29. f5 {[%clk 0:02:54.6]} 29... Rc3 {[%clk 0:03:01.4]} 30. f6 {[%clk
0:02:53.9]} 30... gxf6 {[%clk 0:02:59.7]} 31. Kf5 {[%clk 0:02:53.4]} 31... Rxc5+
{[%clk 0:02:58.8]} 32. Kxf6 {[%clk 0:02:53.3]} 32... b5 {[%clk 0:02:57.6]} 33.
Kxf7 {[%clk 0:02:53.2]} 33... b4 {[%clk 0:02:57.2]} 34. Kg7 {[%clk 0:02:52.9]}
34... b3 {[%clk 0:02:57]} 35. Kxh7 {[%clk 0:02:52.8]} 35... b2 {[%clk
0:02:56.7]} 36. Kg7 {[%clk 0:02:52.7]} 36... b1=Q {[%clk 0:02:56.1]} 37. Kh8
{[%clk 0:02:52.6]} 37... Qg1 {[%clk 0:02:51.7]} 38. Kh7 {[%clk 0:02:49.4]} 38...
Rh5# {[%clk 0:02:51.6]} 0-1

[Event "Live Chess"]
[Site "Chess.com"]
[Date "2023.05.21"]
[Round "-"]
[White "raminguy"]
[Black "GMHarry-youtube"]
[Result "0-1"]
[WhiteElo "1951"]
[BlackElo "2038"]
[TimeControl "300"]
[EndTime "5:17:22 PDT"]
[Termination "GMHarry-youtube won by resignation"]

1. d4 {[%clk 0:04:59.7]} 1... Nf6 {[%clk 0:04:54.4]} 2. Nc3 {[%clk 0:04:59.2]}
2... d5 {[%clk 0:04:53.6]} 3. Bf4 {[%clk 0:04:58.6]} 3... c5 {[%clk 0:04:53.2]}
4. e4 {[%clk 0:04:57.5]} 4... cxd4 {[%clk 0:04:52.8]} 5. Qxd4 {[%clk 0:04:53.7]}
5... Nc6 {[%clk 0:04:49.8]} 6. Bb5 {[%clk 0:04:51.8]} 6... a6 {[%clk 0:04:42.2]}
7. Bxc6+ {[%clk 0:04:47.1]} 7... bxc6 {[%clk 0:04:42.1]} 8. O-O-O {[%clk
0:04:44.9]} 8... e6 {[%clk 0:04:35.4]} 9. exd5 {[%clk 0:04:42.5]} 9... cxd5
{[%clk 0:04:33.4]} 10. Nf3 {[%clk 0:04:37.5]} 10... Bd6 {[%clk 0:04:30.8]} 11.
Bg5 {[%clk 0:04:35.5]} 11... O-O {[%clk 0:04:28]} 12. Rhe1 {[%clk 0:04:33.9]}
12... h6 {[%clk 0:04:09.5]} 13. Bxf6 {[%clk 0:04:32.1]} 13... Qxf6 {[%clk
0:04:08.1]} 14. Qxf6 {[%clk 0:04:30]} 14... gxf6 {[%clk 0:04:08]} 15. g3 {[%clk
0:04:13.7]} 15... Bd7 {[%clk 0:04:00.5]} 16. Rd4 {[%clk 0:03:45.6]} 16... f5
{[%clk 0:03:41.6]} 17. Ne5 {[%clk 0:03:36.8]} 17... Bxe5 {[%clk 0:03:39.7]} 18.
Rxe5 {[%clk 0:03:36.7]} 18... f6 {[%clk 0:03:34.1]} 19. Re1 {[%clk 0:03:32.9]}
19... Kf7 {[%clk 0:03:32.3]} 20. f4 {[%clk 0:03:26.3]} 20... Bb5 {[%clk
0:03:23.7]} 21. a4 {[%clk 0:03:23.1]} 21... Bc6 {[%clk 0:03:22]} 22. b3 {[%clk
0:03:19.1]} 22... Rfc8 {[%clk 0:03:20.5]} 23. Kb2 {[%clk 0:03:16]} 23... a5
{[%clk 0:03:19]} 24. Rd2 {[%clk 0:03:04.7]} 24... Ra7 {[%clk 0:03:15.9]} 25.
Rde2 {[%clk 0:03:03.4]} 25... d4 {[%clk 0:03:06]} 26. Nb1 {[%clk 0:02:49.1]}
26... Be4 {[%clk 0:03:04.6]} 27. Na3 {[%clk 0:02:44.3]} 27... Rac7 {[%clk
0:02:59]} 28. Nc4 {[%clk 0:02:43]} 28... Ke7 {[%clk 0:02:51.8]} 29. Rd2 {[%clk
0:02:37.9]} 29... Rxc4 {[%clk 0:02:37]} 30. bxc4 {[%clk 0:02:35.9]} 30... Rxc4
{[%clk 0:02:36.9]} 31. Ra1 {[%clk 0:02:28.8]} 31... e5 {[%clk 0:02:34]} 32. fxe5
{[%clk 0:02:13.6]} 32... fxe5 {[%clk 0:02:33.9]} 33. Re1 {[%clk 0:02:05.3]}
33... Rxa4 {[%clk 0:02:28]} 34. g4 {[%clk 0:02:03.8]} 34... Rb4+ {[%clk
0:02:20.9]} 35. Ka1 {[%clk 0:01:59.2]} 35... Ke6 {[%clk 0:02:14.4]} 36. gxf5+
{[%clk 0:01:57.7]} 36... Bxf5 {[%clk 0:02:14.3]} 37. Rg2 {[%clk 0:01:23]} 37...
Rc4 {[%clk 0:02:05.6]} 38. Rg8 {[%clk 0:01:20.2]} 38... Rxc2 {[%clk 0:02:02.3]}
39. Re8+ {[%clk 0:01:19.1]} 39... Kf6 {[%clk 0:02:01.5]} 40. R8xe5 {[%clk
0:01:17.8]} 40... d3 {[%clk 0:01:59.5]} 41. Rxa5 {[%clk 0:00:49.4]} 41... d2
{[%clk 0:01:56.2]} 42. Ra6+ {[%clk 0:00:45]} 42... Kg5 {[%clk 0:01:51]} 43. Rg1+
{[%clk 0:00:43]} 43... Bg4 {[%clk 0:01:50]} 44. Ra5+ {[%clk 0:00:40.8]} 44...
Kh4 {[%clk 0:01:47.1]} 45. Rd5 {[%clk 0:00:32.2]} 45... Rc1+ {[%clk 0:01:43.9]}
46. Kb2 {[%clk 0:00:31.1]} 46... Rxg1 {[%clk 0:01:41.4]} 47. Rxd2 {[%clk
0:00:30.3]} 47... Kh3 {[%clk 0:01:40.5]} 48. Kc3 {[%clk 0:00:25.3]} 48... Rg2
{[%clk 0:01:39.8]} 49. Rd6 {[%clk 0:00:24.1]} 49... h5 {[%clk 0:01:38.2]} 50.
Rh6 {[%clk 0:00:22.5]} 50... Kxh2 {[%clk 0:01:35.3]} 51. Kd3 {[%clk 0:00:20.9]}
51... Kg3 {[%clk 0:01:34.3]} 52. Ke3 {[%clk 0:00:20.3]} 52... h4 {[%clk
0:01:33.6]} 53. Rh8 {[%clk 0:00:17.9]} 53... h3 {[%clk 0:01:32.9]} 54. Rh7
{[%clk 0:00:17.2]} 54... h2 {[%clk 0:01:32.3]} 55. Rh8 {[%clk 0:00:16.9]} 55...
Rg1 {[%clk 0:01:27.7]} 0-1